[Event "Titled Tuesday Blitz March 21 Early 2023"]
[White "Domingo Nunez, Ruben"]
[Black "sebastianmarinp"]
[WhiteFideId "22245570"]
[WhiteElo "2404"]
[BlackElo "2263"]
[Result "0-1"]
[Round "01"]
[TimeControl "180+2"]
[Date "2023.03.21"]
[WhiteClock "0:00:03"]
[BlackClock "0:00:09"]

1. b3 {[%clk 0:02:23]}  d5 {[%clk 0:02:54]} 2. Bb2 {[%clk 0:02:24]}  Bf5 {[%clk 0:02:43]} 3. Nf3 {[%clk 0:02:17]}  Nd7 {[%clk 0:02:42]} 4. e3 {[%clk 0:02:18]}  Ngf6 {[%clk 0:02:42]} 5. c4 {[%clk 0:02:18]}  e6 {[%clk 0:02:41]} 6. Be2 {[%clk 0:02:19]}  Bd6 {[%clk 0:02:36]} 7. O-O {[%clk 0:02:19]}  O-O {[%clk 0:02:36]} 8. h3 {[%clk 0:02:19]}  a5 {[%clk 0:02:34]} 9. Nc3 {[%clk 0:02:17]}  c6 {[%clk 0:02:23]} 10. Rc1 {[%clk 0:02:15]}  Qe7 {[%clk 0:02:20]} 11. d4 {[%clk 0:02:08]}  Ba3 {[%clk 0:02:13]} 12. Qd2 {[%clk 0:02:06]}  Bxb2 {[%clk 0:02:12]} 13. Qxb2 {[%clk 0:02:07]}  Ne4 {[%clk 0:02:01]} 14. Na4 {[%clk 0:01:59]}  Rfb8 {[%clk 0:01:43]} 15. c5 {[%clk 0:01:54]}  Bg6 {[%clk 0:01:32]} 16. Ne5 {[%clk 0:01:51]}  Nef6 {[%clk 0:01:16]} 17. f4 {[%clk 0:01:41]}  Be4 {[%clk 0:01:13]} 18. Qd2 {[%clk 0:01:35]}  Rf8 {[%clk 0:01:03]} 19. Qe1 {[%clk 0:01:31]}  Ra7 {[%clk 0:00:53]} 20. Qh4 {[%clk 0:01:23]}  Qd8 {[%clk 0:00:46]} 21. Rf2 {[%clk 0:01:01]}  Qc7 {[%clk 0:00:39]} 22. Rcf1 {[%clk 0:00:52]}  b5 {[%clk 0:00:33]} 23. cxb6 {[%clk 0:00:50]}  Nxb6 {[%clk 0:00:33]} 24. Nc5 {[%clk 0:00:49]}  a4 {[%clk 0:00:27]} 25. b4 {[%clk 0:00:43]}  a3 {[%clk 0:00:24]} 26. Rc1 {[%clk 0:00:39]}  Qd6 {[%clk 0:00:22]} 27. Bf1 {[%clk 0:00:27]}  Rc8 {[%clk 0:00:22]} 28. g4 {[%clk 0:00:26]}  Nfd7 {[%clk 0:00:21]} 29. Qg3 {[%clk 0:00:05]}  f6 {[%clk 0:00:20]} 30. Ned3 {[%clk 0:00:03]}  Nc4 {[%clk 0:00:19]} 31. Ne1 {[%clk 0:00:03]}  Nb2 {[%clk 0:00:17]} 32. Nxe4 {[%clk 0:00:02]}  dxe4 {[%clk 0:00:17]} 33. Nc2 {[%clk 0:00:03]}  Nd3 {[%clk 0:00:17]} 34. Bxd3 {[%clk 0:00:03]}  exd3 {[%clk 0:00:18]} 35. Ne1 {[%clk 0:00:04]}  Qxb4 {[%clk 0:00:16]} 36. Nxd3 {[%clk 0:00:04]}  Qb5 {[%clk 0:00:13]} 37. e4 {[%clk 0:00:05]}  c5 {[%clk 0:00:12]} 38. d5 {[%clk 0:00:05]}  c4 {[%clk 0:00:12]} 39. Ne1 {[%clk 0:00:05]}  exd5 {[%clk 0:00:11]} 40. e5 {[%clk 0:00:05]}  fxe5 {[%clk 0:00:11]} 41. fxe5 {[%clk 0:00:06]}  Re8 {[%clk 0:00:10]} 42. Re2 {[%clk 0:00:05]}  Nc5 {[%clk 0:00:09]} 43. Qf3 {[%clk 0:00:02]}  Ne4 {[%clk 0:00:10]} 44. Nc2 {[%clk 0:00:02]}  Rae7 {[%clk 0:00:09]} 45. Nd4 {[%clk 0:00:02]}  Qc5 {[%clk 0:00:10]} 46. Qe3 {[%clk 0:00:03]}  Rxe5 {[%clk 0:00:10]} 47. Kh2 {[%clk 0:00:04]}  Nf6 {[%clk 0:00:09]} 48. Qd2 {[%clk 0:00:02]}  Rxe2+ {[%clk 0:00:08]} 49. Nxe2 {[%clk 0:00:03]}  Qf2+ {[%clk 0:00:08]} 50. Kh1 {[%clk 0:00:03]}  Rxe2 {[%clk 0:00:09]} 0-1


[Site "https://www.chess.com"]

[Event "Titled Tuesday Blitz March 21 Early 2023"]
[White "Barria Santos, Jose Guilherme"]
[Black "Cuenca Jimenez, Jose Fernando"]
[WhiteFideId "1939300"]
[BlackFideId "2255570"]
[WhiteElo "2301"]
[BlackElo "2429"]
[Result "0-1"]
[Round "01"]
[TimeControl "180+2"]
[Date "2023.03.21"]
[WhiteClock "0:00:37"]
[BlackClock "0:01:25"]

1. e4 {[%clk 0:03:00]}  d6 {[%clk 0:02:58]} 2. d4 {[%clk 0:03:00]}  Nf6 {[%clk 0:02:58]} 3. Nc3 {[%clk 0:03:01]}  e5 {[%clk 0:02:58]} 4. Nf3 {[%clk 0:02:58]}  Nbd7 {[%clk 0:02:56]} 5. Be2 {[%clk 0:02:50]}  Be7 {[%clk 0:02:54]} 6. O-O {[%clk 0:02:50]}  O-O {[%clk 0:02:54]} 7. h3 {[%clk 0:02:47]}  c6 {[%clk 0:02:54]} 8. Be3 {[%clk 0:02:47]}  b5 {[%clk 0:02:54]} 9. a3 {[%clk 0:02:46]}  a6 {[%clk 0:02:46]} 10. Nh2 {[%clk 0:02:36]}  c5 {[%clk 0:02:37]} 11. dxe5 {[%clk 0:02:20]}  dxe5 {[%clk 0:02:33]} 12. Ng4 {[%clk 0:02:10]}  Bb7 {[%clk 0:02:30]} 13. Bf3 {[%clk 0:02:04]}  b4 {[%clk 0:02:13]} 14. axb4 {[%clk 0:02:02]}  cxb4 {[%clk 0:02:14]} 15. Nd5 {[%clk 0:01:56]}  Nxd5 {[%clk 0:02:07]} 16. exd5 {[%clk 0:01:55]}  Bd6 {[%clk 0:01:50]} 17. Nh2 {[%clk 0:00:59]}  f5 {[%clk 0:01:47]} 18. Be2 {[%clk 0:00:53]}  Qc7 {[%clk 0:01:32]} 19. b3 {[%clk 0:00:43]}  e4 {[%clk 0:01:26]} 20. Bc4 {[%clk 0:00:40]}  Bxh2+ {[%clk 0:01:25]} 21. Kh1 {[%clk 0:00:37]}  Bd6 {[%clk 0:01:25]} 0-1


[Site "https://www.chess.com"]

[Event "Titled Tuesday Blitz March 21 Early 2023"]
[White "Tregubov, Pavel V."]
[Black "victormago"]
[WhiteFideId "4115341"]
[WhiteElo "2425"]
[BlackElo "2260"]
[Result "1-0"]
[Round "01"]
[TimeControl "180+2"]
[Date "2023.03.21"]
[WhiteClock "0:00:18"]
[BlackClock "0:00:08"]

1. e4 {[%clk 0:02:59]}  c5 {[%clk 0:02:57]} 2. Nf3 {[%clk 0:02:58]}  d6 {[%clk 0:02:57]} 3. Bb5+ {[%clk 0:02:58]}  Bd7 {[%clk 0:02:57]} 4. Bxd7+ {[%clk 0:02:58]}  Qxd7 {[%clk 0:02:58]} 5. O-O {[%clk 0:02:58]}  Nc6 {[%clk 0:02:58]} 6. c3 {[%clk 0:02:58]}  Nf6 {[%clk 0:02:54]} 7. Qe2 {[%clk 0:02:58]}  e6 {[%clk 0:02:49]} 8. d4 {[%clk 0:02:58]}  cxd4 {[%clk 0:02:48]} 9. cxd4 {[%clk 0:02:59]}  d5 {[%clk 0:02:42]} 10. e5 {[%clk 0:02:59]}  Ne4 {[%clk 0:02:42]} 11. Be3 {[%clk 0:03:00]}  Be7 {[%clk 0:02:40]} 12. Ne1 {[%clk 0:02:59]}  h6 {[%clk 0:02:39]} 13. f3 {[%clk 0:02:59]}  Ng5 {[%clk 0:02:39]} 14. Nc3 {[%clk 0:02:56]}  O-O {[%clk 0:02:38]} 15. Nd3 {[%clk 0:02:52]}  Rfc8 {[%clk 0:02:34]} 16. Bf2 {[%clk 0:02:43]}  b6 {[%clk 0:02:22]} 17. f4 {[%clk 0:02:37]}  Nh7 {[%clk 0:02:12]} 18. Be3 {[%clk 0:02:32]}  Nb4 {[%clk 0:02:01]} 19. Nf2 {[%clk 0:02:13]}  Rc4 {[%clk 0:01:47]} 20. a3 {[%clk 0:02:05]}  Nc6 {[%clk 0:01:45]} 21. Qd3 {[%clk 0:02:04]}  Na5 {[%clk 0:01:40]} 22. Ng4 {[%clk 0:01:56]}  h5 {[%clk 0:01:27]} 23. Nf2 {[%clk 0:01:54]}  g6 {[%clk 0:01:28]} 24. g4 {[%clk 0:01:50]}  hxg4 {[%clk 0:01:26]} 25. Nxg4 {[%clk 0:01:50]}  Rac8 {[%clk 0:01:20]} 26. Rf3 {[%clk 0:01:48]}  Bf8 {[%clk 0:01:17]} 27. Rh3 {[%clk 0:01:46]}  Bg7 {[%clk 0:01:16]} 28. Kh1 {[%clk 0:01:31]}  Qc6 {[%clk 0:01:05]} 29. Rg1 {[%clk 0:01:28]}  Rxc3 {[%clk 0:01:02]} 30. bxc3 {[%clk 0:01:27]}  Qxc3 {[%clk 0:01:03]} 31. Bd2 {[%clk 0:01:19]}  Qxd3 {[%clk 0:00:58]} 32. Rxd3 {[%clk 0:01:19]}  Nc4 {[%clk 0:00:57]} 33. Bb4 {[%clk 0:01:18]}  a5 {[%clk 0:00:55]} 34. Be7 {[%clk 0:01:18]}  Bf8 {[%clk 0:00:53]} 35. Bxf8 {[%clk 0:01:11]}  Kxf8 {[%clk 0:00:51]} 36. h4 {[%clk 0:01:04]}  Ke7 {[%clk 0:00:50]} 37. Rc3 {[%clk 0:00:46]}  Rh8 {[%clk 0:00:43]} 38. Kg2 {[%clk 0:00:44]}  Nf8 {[%clk 0:00:42]} 39. Kg3 {[%clk 0:00:43]}  Nd7 {[%clk 0:00:42]} 40. Ne3 {[%clk 0:00:39]}  Nd2 {[%clk 0:00:21]} 41. Rc7 {[%clk 0:00:34]}  Ne4+ {[%clk 0:00:20]} 42. Kg4 {[%clk 0:00:33]}  Nf2+ {[%clk 0:00:18]} 43. Kf3 {[%clk 0:00:33]}  Ne4 {[%clk 0:00:18]} 44. Rh1 {[%clk 0:00:33]}  Kd8 {[%clk 0:00:18]} 45. Ra7 {[%clk 0:00:32]}  Rh5 {[%clk 0:00:17]} 46. Ng4 {[%clk 0:00:30]}  Nd2+ {[%clk 0:00:15]} 47. Ke3 {[%clk 0:00:25]}  Nc4+ {[%clk 0:00:15]} 48. Kf3 {[%clk 0:00:23]}  Rf5 {[%clk 0:00:15]} 49. h5 {[%clk 0:00:21]}  gxh5 {[%clk 0:00:15]} 50. Nh6 {[%clk 0:00:21]}  Nxa3 {[%clk 0:00:12]} 51. Nxf5 {[%clk 0:00:21]}  exf5 {[%clk 0:00:13]} 52. Rxh5 {[%clk 0:00:21]}  Ke7 {[%clk 0:00:12]} 53. Rxf5 {[%clk 0:00:20]}  b5 {[%clk 0:00:10]} 54. Rxf7+ {[%clk 0:00:20]}  Kxf7 {[%clk 0:00:10]} 55. Rxd7+ {[%clk 0:00:21]}  Ke6 {[%clk 0:00:10]} 56. Rd6+ {[%clk 0:00:20]}  Ke7 {[%clk 0:00:11]} 57. f5 {[%clk 0:00:21]}  b4 {[%clk 0:00:10]} 58. Rb6 {[%clk 0:00:17]}  Nc4 {[%clk 0:00:10]} 59. Rb7+ {[%clk 0:00:17]}  Kf8 {[%clk 0:00:10]} 60. f6 {[%clk 0:00:18]}  b3 {[%clk 0:00:08]} 61. e6 {[%clk 0:00:18]} 1-0


[Site "https://www.chess.com"]

[Event "Titled Tuesday Blitz March 21 Early 2023"]
[White "polandchessplayer"]
[Black "Thiel, Thomas"]
[BlackFideId "4615964"]
[WhiteElo "2647"]
[BlackElo "2251"]
[Result "1-0"]
[Round "01"]
[TimeControl "180+2"]
[Date "2023.03.21"]
[WhiteClock "0:00:48"]
[BlackClock "0:00:01"]

1. c4 {[%clk 0:03:00]}  Nf6 {[%clk 0:02:57]} 2. Nf3 {[%clk 0:02:59]}  g6 {[%clk 0:02:55]} 3. g3 {[%clk 0:02:59]}  Bg7 {[%clk 0:02:55]} 4. Bg2 {[%clk 0:02:59]}  O-O {[%clk 0:02:54]} 5. O-O {[%clk 0:03:00]}  c6 {[%clk 0:02:53]} 6. d4 {[%clk 0:03:00]}  d5 {[%clk 0:02:52]} 7. Qc2 {[%clk 0:03:00]}  Na6 {[%clk 0:02:44]} 8. Nbd2 {[%clk 0:02:58]}  dxc4 {[%clk 0:02:39]} 9. Nxc4 {[%clk 0:02:54]}  Bf5 {[%clk 0:02:29]} 10. Qd1 {[%clk 0:02:49]}  Nb4 {[%clk 0:02:23]} 11. Bf4 {[%clk 0:02:47]}  Nfd5 {[%clk 0:02:13]} 12. Qd2 {[%clk 0:02:22]}  Nxf4 {[%clk 0:02:08]} 13. gxf4 {[%clk 0:02:23]}  Nd5 {[%clk 0:01:50]} 14. e3 {[%clk 0:02:19]}  Nf6 {[%clk 0:01:26]} 15. Nfe5 {[%clk 0:02:14]}  Be4 {[%clk 0:01:23]} 16. f3 {[%clk 0:02:12]}  Bd5 {[%clk 0:01:23]} 17. b3 {[%clk 0:02:04]}  Nd7 {[%clk 0:01:17]} 18. Rad1 {[%clk 0:02:03]}  Nxe5 {[%clk 0:01:15]} 19. fxe5 {[%clk 0:02:04]}  a5 {[%clk 0:01:06]} 20. a4 {[%clk 0:01:57]}  b5 {[%clk 0:01:02]} 21. axb5 {[%clk 0:01:43]}  cxb5 {[%clk 0:01:03]} 22. Na3 {[%clk 0:01:44]}  Bxb3 {[%clk 0:00:54]} 23. Rb1 {[%clk 0:01:43]}  Bc4 {[%clk 0:00:53]} 24. Nxc4 {[%clk 0:01:42]}  bxc4 {[%clk 0:00:52]} 25. f4 {[%clk 0:01:40]}  Rc8 {[%clk 0:00:52]} 26. Qc3 {[%clk 0:01:39]}  e6 {[%clk 0:00:47]} 27. Rfc1 {[%clk 0:01:38]}  Re8 {[%clk 0:00:44]} 28. Ra1 {[%clk 0:01:39]}  Bf8 {[%clk 0:00:41]} 29. Rxa5 {[%clk 0:01:35]}  Qb6 {[%clk 0:00:36]} 30. Ra4 {[%clk 0:01:35]}  Qb3 {[%clk 0:00:34]} 31. Rxc4 {[%clk 0:01:25]}  Rxc4 {[%clk 0:00:29]} 32. Qxb3 {[%clk 0:01:25]}  Rxc1+ {[%clk 0:00:28]} 33. Kf2 {[%clk 0:01:26]}  Rec8 {[%clk 0:00:27]} 34. Be4 {[%clk 0:01:26]}  R1c3 {[%clk 0:00:25]} 35. Qb2 {[%clk 0:01:17]}  Ba3 {[%clk 0:00:24]} 36. Qb7 {[%clk 0:01:13]}  Bc1 {[%clk 0:00:24]} 37. Bd3 {[%clk 0:01:04]}  Rd8 {[%clk 0:00:15]} 38. Ke2 {[%clk 0:01:02]}  Ba3 {[%clk 0:00:10]} 39. h4 {[%clk 0:01:02]}  Bf8 {[%clk 0:00:06]} 40. h5 {[%clk 0:01:02]}  Rdc8 {[%clk 0:00:04]} 41. hxg6 {[%clk 0:00:58]}  hxg6 {[%clk 0:00:05]} 42. Be4 {[%clk 0:00:48]}  Kg7 {[%clk 0:00:02]} 43. d5 {[%clk 0:00:47]}  exd5 {[%clk 0:00:01]} 44. Bxd5 {[%clk 0:00:48]} 1-0


[Site "https://www.chess.com"]

[Event "Titled Tuesday Blitz March 21 Early 2023"]
[White "Al-Tarboush, Ward"]
[Black "Bommini, Mounika Akshaya"]
[WhiteFideId "7601450"]
[BlackFideId "25019872"]
[WhiteElo "2257"]
[BlackElo "2088"]
[Result "1-0"]
[Round "01"]
[TimeControl "180+2"]
[Date "2023.03.21"]
[WhiteClock "0:01:40"]
[BlackClock "0:00:23"]

1. e4 {[%clk 0:03:00]}  e5 {[%clk 0:02:59]} 2. Nf3 {[%clk 0:03:00]}  Nc6 {[%clk 0:02:59]} 3. Bb5 {[%clk 0:03:00]}  a6 {[%clk 0:02:58]} 4. Ba4 {[%clk 0:03:00]}  Nf6 {[%clk 0:02:59]} 5. O-O {[%clk 0:03:00]}  Be7 {[%clk 0:02:59]} 6. d3 {[%clk 0:03:00]}  b5 {[%clk 0:02:57]} 7. Bb3 {[%clk 0:03:00]}  O-O {[%clk 0:02:56]} 8. Nc3 {[%clk 0:02:58]}  d6 {[%clk 0:02:55]} 9. a3 {[%clk 0:02:57]}  Bg4 {[%clk 0:02:48]} 10. Be3 {[%clk 0:02:54]}  Nd4 {[%clk 0:02:44]} 11. Bxd4 {[%clk 0:02:54]}  exd4 {[%clk 0:02:45]} 12. Nd5 {[%clk 0:02:54]}  c6 {[%clk 0:02:40]} 13. Nxf6+ {[%clk 0:02:48]}  Bxf6 {[%clk 0:02:40]} 14. h3 {[%clk 0:02:48]}  Bh5 {[%clk 0:02:39]} 15. g4 {[%clk 0:02:48]}  Bg6 {[%clk 0:02:39]} 16. Ne1 {[%clk 0:02:45]}  h5 {[%clk 0:02:05]} 17. f4 {[%clk 0:02:40]}  hxg4 {[%clk 0:02:03]} 18. hxg4 {[%clk 0:02:36]}  d5 {[%clk 0:01:45]} 19. e5 {[%clk 0:02:31]}  Bh4 {[%clk 0:01:42]} 20. Nf3 {[%clk 0:02:27]}  Bg3 {[%clk 0:01:36]} 21. f5 {[%clk 0:02:22]}  Bh7 {[%clk 0:01:30]} 22. Kg2 {[%clk 0:02:20]}  Bf4 {[%clk 0:01:30]} 23. Nxd4 {[%clk 0:02:17]}  Bxe5 {[%clk 0:01:28]} 24. Nxc6 {[%clk 0:02:17]}  Qd6 {[%clk 0:01:28]} 25. Nxe5 {[%clk 0:02:15]}  Qxe5 {[%clk 0:01:29]} 26. d4 {[%clk 0:02:13]}  Qe4+ {[%clk 0:01:28]} 27. Qf3 {[%clk 0:02:13]}  Qxd4 {[%clk 0:01:23]} 28. Rad1 {[%clk 0:02:08]}  Qxb2 {[%clk 0:01:20]} 29. Rh1 {[%clk 0:02:08]}  Rac8 {[%clk 0:01:04]} 30. Qh3 {[%clk 0:01:45]}  Rxc2+ {[%clk 0:01:03]} 31. Bxc2 {[%clk 0:01:46]}  Qxc2+ {[%clk 0:01:03]} 32. Kg3 {[%clk 0:01:46]}  Qb3+ {[%clk 0:00:56]} 33. Kh2 {[%clk 0:01:46]}  Qc2+ {[%clk 0:00:51]} 34. Qg2 {[%clk 0:01:45]}  Rc8 {[%clk 0:00:27]} 35. Qxc2 {[%clk 0:01:42]}  Rxc2+ {[%clk 0:00:27]} 36. Kg3 {[%clk 0:01:42]}  Rc3+ {[%clk 0:00:27]} 37. Kf4 {[%clk 0:01:42]}  Rxa3 {[%clk 0:00:27]} 38. Rxd5 {[%clk 0:01:41]}  Ra4+ {[%clk 0:00:27]} 39. Kg3 {[%clk 0:01:40]}  Ra3+ {[%clk 0:00:26]} 40. Kf2 {[%clk 0:01:40]}  Ra2+ {[%clk 0:00:23]} 41. Ke3 {[%clk 0:01:40]}  Ra3+ {[%clk 0:00:23]} 42. Kd2 {[%clk 0:01:40]} 1-0


[Site "https://www.chess.com"]

[Event "Titled Tuesday Blitz March 21 Early 2023"]
[White "Ruge, Edison"]
[Black "Turayev, Shahruh"]
[WhiteFideId "4401000"]
[BlackFideId "14003856"]
[WhiteElo "2175"]
[BlackElo "2171"]
[Result "1/2-1/2"]
[Round "01"]
[TimeControl "180+2"]
[Date "2023.03.21"]
[WhiteClock "0:00:06"]
[BlackClock "0:00:41"]

1. e4 {[%clk 0:02:59]}  d5 {[%clk 0:02:59]} 2. d3 {[%clk 0:02:58]}  dxe4 {[%clk 0:02:47]} 3. dxe4 {[%clk 0:02:58]}  Qxd1+ {[%clk 0:02:48]} 4. Kxd1 {[%clk 0:02:58]}  e5 {[%clk 0:02:46]} 5. Be3 {[%clk 0:02:58]}  Be6 {[%clk 0:02:47]} 6. c3 {[%clk 0:02:58]}  Nd7 {[%clk 0:02:47]} 7. Kc2 {[%clk 0:02:58]}  Bc5 {[%clk 0:02:47]} 8. Bxc5 {[%clk 0:02:56]}  Nxc5 {[%clk 0:02:47]} 9. f3 {[%clk 0:02:54]}  a5 {[%clk 0:02:47]} 10. Nd2 {[%clk 0:02:54]}  f6 {[%clk 0:02:45]} 11. Bc4 {[%clk 0:02:51]}  Kf7 {[%clk 0:02:46]} 12. Bxe6+ {[%clk 0:02:51]}  Kxe6 {[%clk 0:02:46]} 13. Ne2 {[%clk 0:02:44]}  Ne7 {[%clk 0:02:44]} 14. Nc4 {[%clk 0:02:43]}  b5 {[%clk 0:02:37]} 15. Ne3 {[%clk 0:02:42]}  c6 {[%clk 0:02:38]} 16. Rad1 {[%clk 0:02:41]}  g5 {[%clk 0:02:30]} 17. Rd2 {[%clk 0:02:41]}  Rad8 {[%clk 0:02:29]} 18. Rhd1 {[%clk 0:02:41]}  Rxd2+ {[%clk 0:02:29]} 19. Rxd2 {[%clk 0:02:41]}  h5 {[%clk 0:02:29]} 20. Ng3 {[%clk 0:02:35]}  h4 {[%clk 0:02:22]} 21. Ngf5 {[%clk 0:02:34]}  Nxf5 {[%clk 0:02:22]} 22. Nxf5 {[%clk 0:02:34]}  Nb7 {[%clk 0:02:20]} 23. Ng7+ {[%clk 0:02:33]}  Kf7 {[%clk 0:02:20]} 24. Rd7+ {[%clk 0:02:31]}  Kg6 {[%clk 0:02:20]} 25. Rxb7 {[%clk 0:02:31]}  Rh7 {[%clk 0:02:20]} 26. Rc7 {[%clk 0:02:14]}  Rxg7 {[%clk 0:02:18]} 27. Rxc6 {[%clk 0:02:14]}  h3 {[%clk 0:02:08]} 28. g4 {[%clk 0:02:12]}  Rb7 {[%clk 0:02:07]} 29. Ra6 {[%clk 0:02:08]}  a4 {[%clk 0:02:06]} 30. Rd6 {[%clk 0:02:05]}  Kf7 {[%clk 0:02:06]} 31. b3 {[%clk 0:02:01]}  axb3+ {[%clk 0:02:06]} 32. Kxb3 {[%clk 0:02:01]}  Ke7 {[%clk 0:02:06]} 33. Rd1 {[%clk 0:01:53]}  Ke6 {[%clk 0:01:56]} 34. Rg1 {[%clk 0:01:52]}  Kd6 {[%clk 0:01:53]} 35. Rg3 {[%clk 0:01:51]}  Rh7 {[%clk 0:01:54]} 36. Kb4 {[%clk 0:01:45]}  Kc6 {[%clk 0:01:54]} 37. Rg1 {[%clk 0:01:40]}  Ra7 {[%clk 0:01:53]} 38. Kb3 {[%clk 0:01:37]}  Rd7 {[%clk 0:01:53]} 39. Rg3 {[%clk 0:01:36]}  Rh7 {[%clk 0:01:53]} 40. c4 {[%clk 0:01:29]}  Kc5 {[%clk 0:01:49]} 41. cxb5 {[%clk 0:01:28]}  Kxb5 {[%clk 0:01:49]} 42. a3 {[%clk 0:01:23]}  Rh8 {[%clk 0:01:46]} 43. Rg1 {[%clk 0:01:17]}  Rd8 {[%clk 0:01:39]} 44. a4+ {[%clk 0:01:12]}  Ka5 {[%clk 0:01:36]} 45. Kc4 {[%clk 0:01:07]}  Rd2 {[%clk 0:01:34]} 46. Kc5 {[%clk 0:00:56]}  Rxh2 {[%clk 0:01:33]} 47. Kd6 {[%clk 0:00:56]}  Rf2 {[%clk 0:01:33]} 48. Rg3 {[%clk 0:00:54]}  h2 {[%clk 0:01:31]} 49. Rh3 {[%clk 0:00:50]}  Kxa4 {[%clk 0:01:31]} 50. Ke6 {[%clk 0:00:44]}  Kb4 {[%clk 0:01:31]} 51. Rh8 {[%clk 0:00:43]}  Rxf3 {[%clk 0:01:31]} 52. Rxh2 {[%clk 0:00:42]}  Kc4 {[%clk 0:01:31]} 53. Rd2 {[%clk 0:00:42]}  Rf4 {[%clk 0:01:30]} 54. Rd1 {[%clk 0:00:38]}  Kc3 {[%clk 0:01:09]} 55. Rd8 {[%clk 0:00:37]}  Rxg4 {[%clk 0:01:03]} 56. Kxf6 {[%clk 0:00:36]}  Rxe4 {[%clk 0:01:03]} 57. Kxg5 {[%clk 0:00:35]}  Re1 {[%clk 0:00:57]} 58. Kg4 {[%clk 0:00:35]}  e4 {[%clk 0:00:56]} 59. Kg3 {[%clk 0:00:32]}  Rf1 {[%clk 0:00:56]} 60. Kg2 {[%clk 0:00:31]}  Rf7 {[%clk 0:00:56]} 61. Kg1 {[%clk 0:00:15]}  e3 {[%clk 0:00:53]} 62. Re8 {[%clk 0:00:14]}  Kd2 {[%clk 0:00:53]} 63. Rd8+ {[%clk 0:00:14]}  Ke1 {[%clk 0:00:53]} 64. Re8 {[%clk 0:00:13]}  e2 {[%clk 0:00:53]} 65. Kg2 {[%clk 0:00:12]}  Rf5 {[%clk 0:00:53]} 66. Re7 {[%clk 0:00:09]}  Kd2 {[%clk 0:00:53]} 67. Rd7+ {[%clk 0:00:08]}  Ke3 {[%clk 0:00:54]} 68. Re7+ {[%clk 0:00:08]}  Kd2 {[%clk 0:00:52]} 69. Rd7+ {[%clk 0:00:08]}  Ke1 {[%clk 0:00:52]} 70. Re7 {[%clk 0:00:08]}  Rg5+ {[%clk 0:00:53]} 71. Kf3 {[%clk 0:00:06]}  Rf5+ {[%clk 0:00:41]} 72. Kg2 {[%clk 0:00:06]} 1/2-1/2


[Site "https://www.chess.com"]

[Event "Titled Tuesday Blitz March 21 Early 2023"]
[White "monkins"]
[Black "Demin, Vladimir"]
[BlackFideId "4167457"]
[WhiteElo "2217"]
[BlackElo "2636"]
[Result "1-0"]
[Round "01"]
[TimeControl "180+2"]
[Date "2023.03.21"]
[WhiteClock "0:00:48"]
[BlackClock "0:00:05"]

1. Nf3 {[%clk 0:02:57]}  d5 {[%clk 0:02:58]} 2. c4 {[%clk 0:02:56]}  e6 {[%clk 0:02:57]} 3. g3 {[%clk 0:02:56]}  Nf6 {[%clk 0:02:57]} 4. Bg2 {[%clk 0:02:56]}  Be7 {[%clk 0:02:57]} 5. O-O {[%clk 0:02:57]}  O-O {[%clk 0:02:58]} 6. d3 {[%clk 0:02:57]}  b6 {[%clk 0:02:55]} 7. Nbd2 {[%clk 0:02:57]}  Bb7 {[%clk 0:02:55]} 8. Rb1 {[%clk 0:02:58]}  c5 {[%clk 0:02:53]} 9. a3 {[%clk 0:02:57]}  d4 {[%clk 0:02:51]} 10. b4 {[%clk 0:02:56]}  Qc7 {[%clk 0:02:36]} 11. bxc5 {[%clk 0:02:49]}  Bxc5 {[%clk 0:02:35]} 12. Nb3 {[%clk 0:02:48]}  e5 {[%clk 0:02:20]} 13. Nxc5 {[%clk 0:02:28]}  Qxc5 {[%clk 0:02:19]} 14. Bd2 {[%clk 0:02:28]}  Re8 {[%clk 0:02:08]} 15. Bb4 {[%clk 0:02:27]}  Qc7 {[%clk 0:02:08]} 16. c5 {[%clk 0:01:58]}  bxc5 {[%clk 0:01:51]} 17. Bxc5 {[%clk 0:01:58]}  Qxc5 {[%clk 0:01:50]} 18. Rxb7 {[%clk 0:01:57]}  Nbd7 {[%clk 0:01:44]} 19. Qa1 {[%clk 0:01:46]}  Rab8 {[%clk 0:01:40]} 20. Rxb8 {[%clk 0:01:41]}  Rxb8 {[%clk 0:01:39]} 21. Rc1 {[%clk 0:01:42]}  Qb6 {[%clk 0:01:36]} 22. Nd2 {[%clk 0:01:40]}  h5 {[%clk 0:01:31]} 23. Nc4 {[%clk 0:01:30]}  Qe6 {[%clk 0:01:21]} 24. Rb1 {[%clk 0:01:27]}  Rxb1+ {[%clk 0:01:20]} 25. Qxb1 {[%clk 0:01:28]}  e4 {[%clk 0:01:19]} 26. h3 {[%clk 0:01:11]}  g6 {[%clk 0:00:48]} 27. Qb7 {[%clk 0:01:03]}  exd3 {[%clk 0:00:42]} 28. exd3 {[%clk 0:01:04]}  Qe1+ {[%clk 0:00:41]} 29. Bf1 {[%clk 0:01:04]}  Kg7 {[%clk 0:00:39]} 30. Qxa7 {[%clk 0:01:04]}  Nf8 {[%clk 0:00:27]} 31. Qxd4 {[%clk 0:01:02]}  Ne6 {[%clk 0:00:25]} 32. Qe5 {[%clk 0:00:59]}  Qd1 {[%clk 0:00:21]} 33. Ne3 {[%clk 0:00:56]}  Qb3 {[%clk 0:00:18]} 34. g4 {[%clk 0:00:51]}  hxg4 {[%clk 0:00:18]} 35. Nxg4 {[%clk 0:00:49]}  Qd1 {[%clk 0:00:05]} 36. Qxf6+ {[%clk 0:00:48]}  Kf8 {[%clk 0:00:05]} 37. Ne5 {[%clk 0:00:48]} 1-0


[Site "https://www.chess.com"]